bitfinex/quotes_SOLUSD_20250206
["timestamp","ask_amount","ask_price","bid_price","bid_amount"]
[1738801308560,5.037,198.53,198.46,24.51023884]
[1738801308847,29.54723884,198.53,198.46,24.51023884]
[1738801309047,24.51023884,198.52,198.45,24.51023884]
[1738801309250,24.51023884,198.51,198.44,24.51023884]
[1738801309452,17.6295,198.53,198.45,24.51023884]
[1738801309453,24.51023884,198.52,198.45,24.51023884]
[1738801310243,42.13973884,198.53,198.46,24.51023884]
[1738801310446,42.13973884,198.53,198.41,0.75569172]
[1738801310447,24.51023884,198.52,198.41,0.75569172]
[1738801310647,24.51023884,198.43,198.36,24.51023884]
[1738801311034,24.51023884,198.45,198.38,24.51023884]
[1738801311230,7.9295,198.46,198.35,0.8190104]
[1738801311848,7.9295,198.46,198.39,24.51023884]
[1738801312146,7.9295,198.46,198.37,24.51023884]
[1738801312147,24.51023884,198.44,198.37,24.51023884]
[1738801312348,42.15033884,198.41,198.35,0.063]
[1738801312550,24.51023884,198.37,198.35,0.063]
[1738801312757,24.51023884,198.36,198.35,0.063]
[1738801313070,24.51023884,198.36,198.27,0.063]
[1738801313071,13.41184853,198.35,198.27,0.063]
[1738801313433,13.41184853,198.33,198.27,0.063]
[1738801313938,24.51023884,198.3,198.27,0.063]
[1738801314344,24.51023884,198.31,198.27,0.063]
[1738801314649,5.0423,198.32,198.27,0.063]
[1738801314855,5.0415,198.36,198.31,24.51023884]
[1738801315051,5.0415,198.36,198.34,24.51023884]
[1738801315750,1.6194,198.4,198.34,24.51023884]
[1738801315947,5.0408,198.38,198.35,24.51023884]
[1738801316348,5.0408,198.38,198.34,24.51023884]
[1738801316935,5.0408,198.38,198.33,24.51023884]
[1738801317632,5.0408,198.38,198.34,24.51023884]
[1738801318068,5.0408,198.38,198.33,24.51023884]
[1738801318356,5.0408,198.38,198.34,24.51023884]
[1738801318935,5.0403,198.4,198.36,24.51023884]
[1738801319135,5.0393,198.44,198.38,24.51023884]
[1738801319452,5.0389,198.46,198.43,24.51023884]
[1738801319652,5.0389,198.46,198.41,24.51023884]
[1738801320457,29.54913884,198.46,198.39,24.51023884]
[1738801320762,5.0389,198.46,198.41,24.51023884]
[1738801320932,5.0389,198.46,198.42,24.51023884]
[1738801321132,5.0389,198.46,198.4,24.51023884]
[1738801321133,13.41184853,198.45,198.4,24.51023884]
[1738801321332,13.41184853,198.43,198.33,0.75598225]
[1738801321559,24.51023884,198.39,198.32,24.51023884]
[1738801321858,24.51023884,198.41,198.33,24.51023884]
[1738801322238,24.51023884,198.43,198.36,24.51023884]
[1738801322438,5.0398,198.42,198.36,24.51023884]
[1738801325165,4.3,198.46,198.36,24.51023884]
[1738801325166,0.03,198.55,198.45,0.12549]
[1738801325355,0.03,198.55,198.54,24.51023884]
[1738801327446,0.03,198.55,198.54,25.26545605]
[1738801329152,0.03,198.55,198.54,24.51023884]
[1738801329684,0.03,198.55,198.54,25.26549181]
[1738801331745,0.03,198.55,198.54,24.51023884]
[1738801332366,0.03,198.55,198.54,24.76121884]
[1738801332671,5.0339,198.66,198.55,5.0365]
[1738801332870,5.0339,198.66,198.62,24.51023884]
[1738801333053,5.0339,198.66,198.6,24.51023884]
[1738801333647,5.0339,198.66,198.58,24.51023884]
[1738801333648,13.41184853,198.65,198.58,24.51023884]
[1738801335165,5.0342,198.64,198.58,24.51023884]
[1738801335377,6.1759,198.68,198.62,24.51023884]
[1738801335563,5.0334,198.67,198.62,24.51023884]
[1738801336069,0.03,198.65,198.62,24.51023884]
[1738801337159,0.03,198.65,198.57,5.79087212]
[1738801337160,0.03,198.65,198.6,24.51023884]
[1738801339775,0.03,198.65,198.58,24.51023884]
[1738801342284,0.03,198.65,198.63,24.51023884]
[1738801342780,0.03,198.65,198.61,24.51023884]
[1738801344494,0.03,198.65,198.63,24.51023884]
[1738801344883,0.03,198.65,198.64,0.75492433]
[1738801345674,0.03,198.65,198.64,5.78912433]
[1738801346174,0.03,198.65,198.64,0.75490383]
[1738801347062,5.0311,198.77,198.66,20.0]
[1738801347268,11.4446,198.78,198.74,24.51023884]
[1738801347782,6.4138,198.78,198.74,24.51023884]
[1738801348289,11.4445,198.78,198.74,24.51023884]
[1738801348778,11.4445,198.78,198.72,24.51023884]
[1738801348980,35.95473884,198.78,198.72,24.51023884]
[1738801350368,35.95473884,198.78,198.7,24.51023884]
[1738801351796,35.95473884,198.78,198.62,0.75477373]
[1738801351797,11.4445,198.78,198.72,24.51023884]
[1738801352285,35.95473884,198.78,198.71,24.51023884]
[1738801352490,24.51023884,198.76,198.69,24.51023884]
[1738801353373,11.4445,198.78,198.71,24.51023884]
[1738801353879,24.51023884,198.77,198.7,24.51023884]
[1738801354083,11.4445,198.78,198.7,24.51023884]
[1738801354404,11.4445,198.78,198.72,24.51023884]
[1738801354569,11.4445,198.78,198.73,24.51023884]
[1738801354769,11.4445,198.78,198.74,24.51023884]
[1738801355179,11.4445,198.78,198.72,24.51023884]
[1738801357817,24.51023884,198.77,198.69,24.51023884]
[1738801358398,24.51023884,198.76,198.69,24.51023884]
[1738801358772,5.0314,198.75,198.69,24.51023884]
[1738801359178,24.51023884,198.73,198.66,24.51023884]
[1738801359902,42.12023884,198.75,198.67,24.51023884]
[1738801360276,5.0314,198.75,198.69,24.51023884]
[1738801360690,5.0314,198.75,198.68,24.51023884]
[1738801360890,5.0314,198.75,198.69,24.51023884]
[1738801361711,5.0314,198.75,198.68,24.51023884]
[1738801362216,5.0314,198.75,198.69,24.51023884]
[1738801362524,32.40234853,198.78,198.64,5.78877609]
[1738801362525,5.0309,198.77,198.72,24.51023884]
[1738801362885,5.0309,198.77,198.71,24.51023884]
[1738801364212,5.0309,198.77,198.72,24.51023884]
[1738801366296,1.6524,198.79,198.74,24.51023884]
[1738801366297,6.683,198.79,198.74,24.51023884]
[1738801366826,5.0306,198.79,198.74,24.51023884]
[1738801367316,30.52553884,198.83,198.75,24.51023884]
[1738801367499,5.0296,198.82,198.75,24.51023884]
[1738801368435,42.11573884,198.8,198.71,24.51023884]
[1738801370717,24.51023884,198.73,198.65,24.57323884]
[1738801371398,24.51023884,198.75,198.65,24.57323884]
[1738801371800,24.51023884,198.75,198.67,24.51023884]
[1738801372099,24.51023884,198.73,198.65,24.57323884]
[1738801372315,5.0322,198.72,198.65,24.57323884]
[1738801374519,24.51023884,198.71,198.65,0.063]
[1738801375301,9.2922,198.72,198.65,24.57323884]
[1738801375501,37.92208737,198.71,198.65,0.063]
[1738801376419,5.0327,198.7,198.65,0.063]
[1738801376640,37.92208737,198.69,198.65,0.063]
[1738801377258,17.6144,198.7,198.65,0.063]
[1738801378118,5.0327,198.7,198.65,0.063]
[1738801378321,5.0327,198.7,198.65,24.57323884]
[1738801379423,5.0327,198.7,198.65,0.063]
[1738801379828,13.41184853,198.68,198.65,0.063]
[1738801380330,5.0334,198.67,198.65,0.063]
[1738801384345,36.9592452,198.66,198.65,0.063]
[1738801384519,36.9592452,198.66,198.58,15.20389383]
[1738801385432,37.68649277,198.66,198.58,15.20389383]
[1738801385920,37.68649277,198.66,198.44,8.78461805]
[1738801385921,15.20389383,198.62,198.54,15.20389383]
[1738801386129,13.41184853,198.61,198.54,15.20389383]
[1738801387317,19.44389383,198.62,198.54,15.20389383]
[1738801387524,19.44389383,198.62,198.56,15.20389383]
[1738801388018,18.44674853,198.61,198.54,15.20389383]
[1738801388324,31.03414853,198.61,198.54,15.20389383]
[1738801388546,17.6223,198.61,198.54,15.20389383]
[1738801392431,13.41184853,198.6,198.56,15.20389383]
[1738801393036,28.61574236,198.6,198.52,15.20389383]
[1738801393242,13.41184853,198.57,198.5,15.20389383]
[1738801393439,23.26859383,198.56,198.48,15.20389383]
[1738801393842,5.0367,198.54,198.48,15.20389383]
[1738801394057,13.41184853,198.53,198.48,15.20389383]
[1738801396042,5.0367,198.54,198.48,15.20389383]
[1738801396043,5.0372,198.52,198.48,15.20389383]
[1738801396636,35.85939383,198.56,198.5,15.20389383]
[1738801396637,5.0365,198.55,198.5,15.20389383]
[1738801397048,18.44834853,198.55,198.5,15.20389383]
[1738801397239,18.44834853,198.55,198.49,15.20389383]
[1738801397435,13.41184853,198.54,198.47,15.20389383]
[1738801397838,28.61574236,198.54,198.46,15.20389383]
[1738801398243,28.61574236,198.54,198.47,15.20389383]
[1738801398244,5.037,198.53,198.47,15.20389383]
[1738801398840,18.44884853,198.53,198.47,15.20389383]
[1738801399161,18.44884853,198.53,198.46,15.20389383]
[1738801399558,18.44884853,198.53,198.47,15.20389383]
[1738801400868,15.20389383,198.55,198.48,15.20389383]
[1738801401061,5.0367,198.54,198.48,15.20389383]
[1738801401366,5.0367,198.54,198.49,15.20389383]
[1738801402163,5.0367,198.54,198.48,15.20389383]
[1738801402862,5.0367,198.54,198.47,15.20389383]
[1738801406389,5.0367,198.54,198.48,15.20389383]
[1738801406666,5.0367,198.54,198.5,15.20389383]
[1738801406969,5.0365,198.55,198.51,15.20389383]
[1738801408180,5.0365,198.55,198.5,15.20389383]
[1738801408346,5.0365,198.55,198.49,15.20389383]
[1738801408545,5.0365,198.55,198.48,15.20389383]
[1738801408863,5.0365,198.55,198.49,15.20389383]
[1738801409956,5.0365,198.55,198.51,15.20389383]
[1738801410449,5.0365,198.55,198.5,15.20389383]
[1738801414879,5.0365,198.55,198.5,9.74112646]
[1738801415481,9.74112646,198.57,198.5,9.74112646]
[1738801415692,5.0362,198.56,198.5,9.74112646]
[1738801417280,13.41184853,198.57,198.5,9.74112646]
[1738801417486,18.44784853,198.57,198.5,9.74112646]
[1738801419285,9.74112646,198.54,198.47,0.063]
[1738801420485,18.44884853,198.53,198.47,0.063]
[1738801420885,18.44884853,198.53,198.5,0.063]
[1738801422590,23.52944499,198.51,198.47,0.063]
[1738801422761,0.37647,198.42,198.35,0.063]
[1738801422966,15.00904853,198.4,198.35,0.063]
[1738801423161,6.3259,198.37,198.28,10.98081729]
[1738801423362,1.0,198.31,198.27,7.145e-05]
[1738801423585,4.80170284,198.3,198.26,76.69825195]
[1738801423894,9.74112646,198.27,198.26,76.69825195]
[1738801424492,14.78472646,198.27,198.26,38.95825195]
[1738801424688,20.31343107,198.27,198.26,38.95825195]
[1738801424991,20.31343107,198.27,198.18,0.063]
[1738801425179,15.26983107,198.24,198.18,0.063]
[1738801425568,10.39348549,198.23,198.18,312.063]
[1738801425783,15.26983107,198.22,198.18,312.063]
[1738801426271,10.39348549,198.23,198.18,0.063]
[1738801426672,10.39348549,198.22,198.18,0.063]
[1738801426982,15.26983107,198.19,198.11,15.26983107]
[1738801427289,15.26983107,198.14,198.06,15.26983107]
[1738801427670,15.26983107,198.12,198.04,15.26983107]
[1738801428472,24.25146615,198.11,198.04,15.26983107]
[1738801428878,10.39348549,198.1,198.04,15.26983107]
[1738801429769,10.39348549,198.09,198.06,15.26983107]
[1738801429976,10.39348549,198.09,198.08,15.26983107]
[1738801431494,31.28815116,198.13,198.08,15.26983107]
[1738801431684,31.28815116,198.13,198.12,15.26983107]
[1738801432673,31.28815116,198.13,198.12,24.44196338]
[1738801433375,7.9182,198.23,198.12,24.44196338]
[1738801433376,51.7230001,198.21,198.12,24.44196338]
[1738801433578,51.7230001,198.21,198.16,24.44196338]
[1738801434880,46.6778001,198.21,198.18,24.44196338]
[1738801437768,46.6778001,198.21,198.2,24.44196338]
[1738801438997,46.6778001,198.21,198.2,48.88392676]
[1738801439414,46.6778001,198.21,198.2,53.92932676]
[1738801439970,46.6778001,198.21,198.2,24.44196338]
[1738801440300,5.0436,198.27,198.14,1.0]
[1738801440301,5.0438,198.26,198.19,24.44196338]
[1738801440682,13.16990284,198.29,198.22,24.44196338]
[1738801440683,24.44196338,198.29,198.22,24.44196338]
[1738801440886,5.0435,198.28,198.23,24.44196338]
[1738801441283,5.0428,198.3,198.23,24.44196338]
[1738801441694,5.1056,198.32,198.27,24.44196338]
[1738801441870,5.1056,198.32,198.26,24.44196338]
[1738801442280,5.1056,198.32,198.28,24.44196338]
[1738801442490,0.063,198.32,198.29,24.44196338]
[1738801442973,5.1054,198.32,198.26,24.44196338]
[1738801443178,24.44196338,198.31,198.23,24.44196338]
[1738801443382,29.48476338,198.3,198.22,24.44196338]
[1738801443883,0.56170284,198.29,198.27,24.44196338]
[1738801444077,0.063,198.32,198.28,24.44196338]
[1738801444278,0.063,198.32,198.3,24.44196338]
[1738801444481,0.063,198.32,198.29,24.44196338]
[1738801444482,5.1053,198.32,198.29,24.44196338]
[1738801445013,0.063,198.32,198.29,24.44196338]
[1738801445886,0.063,198.32,198.31,24.44196338]
[1738801448111,0.063,198.32,198.31,29.48456338]
[1738801450091,0.063,198.32,198.31,30.48456338]
[1738801450288,5.0395,198.44,198.34,20.0]
[1738801450505,1.5982,198.48,198.42,24.44196338]
[1738801450506,5.0385,198.47,198.42,24.44196338]
[1738801452105,11.6883,198.49,198.44,24.44196338]
[1738801452709,11.6883,198.49,198.43,15.23169065]
[1738801454823,6.6501,198.49,198.43,15.23169065]
[1738801455000,5.1007,198.51,198.47,15.23169065]
[1738801455900,0.063,198.51,198.47,15.23169065]
[1738801456694,0.063,198.51,198.49,15.23169065]
[1738801458410,0.063,198.51,198.48,15.23169065]
[1738801459509,0.063,198.51,198.5,15.23169065]
[1738801459810,0.063,198.51,198.49,15.23169065]
[1738801460015,0.063,198.51,198.5,30.4633813]
[1738801460581,0.063,198.51,198.5,15.23169065]
[1738801461617,0.063,198.51,198.47,5.0384]
[1738801461618,0.063,198.51,198.47,15.23169065]
[1738801461784,0.063,198.51,198.45,15.23169065]
[1738801461980,0.063,198.51,198.44,15.23169065]
[1738801461981,15.29469065,198.51,198.44,15.23169065]
[1738801462181,15.29469065,198.51,198.4,21.0]
[1738801462182,0.063,198.51,198.4,21.0]
[1738801462409,0.063,198.51,198.41,0.75563886]
[1738801462607,0.063,198.51,198.44,15.23169065]
[1738801463389,5.1005,198.51,198.44,15.23169065]
[1738801463597,15.23169065,198.5,198.42,15.23169065]
[1738801464814,5.038,198.49,198.42,15.23169065]
[1738801465112,5.038,198.49,198.44,15.23169065]
[1738801466500,5.038,198.49,198.42,15.23169065]
[1738801466501,6.1111,198.48,198.42,15.23169065]
[1738801466813,6.1111,198.48,198.4,15.23169065]
[1738801466814,5.0385,198.47,198.4,15.23169065]
[1738801467215,15.23169065,198.46,198.38,15.23169065]
[1738801467389,0.56170284,198.45,198.38,15.23169065]
[1738801467592,0.56170284,198.45,198.3,16.83699065]
[1738801467593,15.23169065,198.44,198.36,15.23169065]
[1738801468614,5.0393,198.44,198.38,15.23169065]
[1738801469020,5.0393,198.44,198.36,5.0411]
[1738801469201,5.0393,198.44,198.4,15.23169065]
[1738801469700,6.1111,198.48,198.42,15.23169065]
[1738801470016,5.0385,198.47,198.42,15.23169065]
[1738801470600,5.0385,198.47,198.42,24.37440792]
[1738801471118,5.0385,198.47,198.41,24.37440792]
[1738801473508,5.0385,198.47,198.43,24.37440792]
[1738801476505,5.0385,198.47,198.4,24.37440792]
[1738801477422,29.41290792,198.47,198.4,24.37440792]
[1738801479018,5.0385,198.47,198.45,24.37440792]
[1738801479322,6.1111,198.48,198.45,24.37440792]
[1738801479623,6.1111,198.48,198.46,24.37440792]
[1738801479820,11.1493,198.48,198.46,24.37440792]
[1738801480403,11.1493,198.48,198.45,24.37440792]
[1738801480922,11.1493,198.48,198.43,24.37440792]
[1738801481123,11.1493,198.48,198.41,24.37440792]
[1738801482020,11.1493,198.48,198.43,24.37440792]
[1738801482213,6.1111,198.48,198.45,24.37440792]
[1738801483123,11.1494,198.48,198.45,24.37440792]
[1738801485231,11.1494,198.48,198.43,24.37440792]
[1738801486104,11.1494,198.48,198.41,24.37440792]
[1738801486302,24.37440792,198.45,198.37,24.37440792]
[1738801486506,5.0393,198.44,198.37,24.37440792]
[1738801488310,24.37440792,198.43,198.36,24.37440792]
[1738801488510,5.0393,198.44,198.38,24.37440792]
[1738801490019,5.0393,198.44,198.4,24.37440792]
[1738801491116,5.0387,198.46,198.4,24.37440792]
[1738801492646,5.0387,198.46,198.4,15.23765171]
[1738801492947,15.61412171,198.45,198.37,15.23765171]
[1738801493852,31.61105137,198.44,198.37,15.23765171]
[1738801494055,15.23765171,198.43,198.35,15.23765171]
[1738801495839,5.0398,198.42,198.35,15.23765171]
[1738801496018,29.02597024,198.41,198.33,15.23765171]
[1738801496221,21.85505171,198.38,198.32,0.03]
[1738801496616,15.23765171,198.37,198.32,0.03]
[1738801496823,35.23765171,198.35,198.32,0.03]
[1738801497431,29.02597024,198.34,198.32,0.03]
[1738801497934,5.0421,198.33,198.32,0.03]
[1738801498516,6.6174,198.38,198.32,15.26765171]
[1738801498715,5.041,198.37,198.34,15.23765171]
[1738801499459,5.041,198.37,198.33,15.23765171]
[1738801499843,7.76982638,198.38,198.35,15.23765171]
[1738801500524,12.81072638,198.38,198.34,15.23765171]
[1738801500726,12.81072638,198.38,198.33,15.23765171]
[1738801501120,5.0409,198.38,198.34,15.23765171]
[1738801501916,1.6432,198.39,198.34,15.23765171]
[1738801502217,5.0405,198.4,198.36,15.23765171]
[1738801502421,5.04,198.42,198.36,15.23765171]
[1738801502944,15.23765171,198.41,198.34,15.23765171]
[1738801503243,15.23765171,198.4,198.33,15.23765171]
[1738801503446,17.6395,198.42,198.36,15.23765171]
[1738801503741,17.6395,198.42,198.35,15.23765171]
[1738801504045,17.6395,198.42,198.36,15.23765171]
[1738801504836,0.063,198.4,198.35,15.23765171]
[1738801506142,0.063,198.4,198.36,15.23765171]
[1738801506352,0.063,198.4,198.35,15.23765171]
[1738801506538,0.063,198.4,198.33,15.23765171]
[1738801506738,0.063,198.4,198.34,15.23765171]
[1738801507043,0.063,198.4,198.35,15.23765171]
[1738801509141,5.1033,198.4,198.35,15.23765171]
[1738801509845,17.7041,198.4,198.35,15.23765171]
[1738801510629,17.7041,198.4,198.33,15.23765171]
[1738801511157,15.23765171,198.37,198.32,0.03]
[1738801511461,15.61412171,198.36,198.32,0.03]
[1738801511979,20.17561853,198.33,198.32,0.03]
[1738801512127,35.41327024,198.33,198.32,0.03]
[1738801513438,40.45537024,198.33,198.32,0.03]
[1738801514157,25.21771853,198.33,198.32,0.03]
[1738801514339,6.6034,198.34,198.32,0.03]
[1738801514936,21.84105171,198.34,198.32,0.03]
[1738801515449,15.23765171,198.33,198.32,0.03]
[1738801515757,13.78831853,198.32,198.24,15.23765171]
[1738801516056,13.78831853,198.32,198.2,1.5854]
[1738801516057,29.02597024,198.3,198.22,15.23765171]
[1738801516631,29.02597024,198.3,198.23,15.23765171]
[1738801517040,5.0431,198.29,198.23,15.23765171]
[1738801517242,0.25098,198.28,198.23,15.23765171]
[1738801517936,5.0436,198.27,198.23,15.23765171]
[1738801518137,20.0,198.3,198.26,15.23765171]
[1738801518340,20.0,198.3,198.25,15.23765171]
[1738801518540,13.78831853,198.29,198.24,15.23765171]
[1738801519155,13.78831853,198.29,198.23,15.23765171]
[1738801520267,5.0433,198.28,198.23,15.23765171]
[1738801520865,25.0431,198.3,198.26,15.23765171]
[1738801521076,5.0423,198.32,198.29,15.23765171]
[1738801522365,20.0,198.32,198.29,15.23765171]
[1738801522665,5.0421,198.33,198.29,15.23765171]
[1738801523577,5.0413,198.36,198.31,15.23765171]
[1738801523739,6.0622,198.37,198.33,15.23765171]
[1738801523945,20.0,198.38,198.34,15.23765171]
[1738801524183,20.0,198.37,198.33,15.23765171]
[1738801524883,5.41777,198.36,198.3,15.23765171]
[1738801525043,0.37647,198.34,198.29,15.23765171]
[1738801525483,0.37647,198.34,198.28,15.23765171]
[1738801526051,5.0421,198.33,198.28,15.23765171]
[1738801526254,5.0421,198.33,198.3,15.23765171]
[1738801527299,5.0413,198.36,198.3,15.23765171]
[1738801528679,0.063,198.34,198.3,15.23765171]
[1738801529291,0.063,198.34,198.31,15.23765171]
[1738801529980,0.063,198.34,198.29,15.23765171]
[1738801530162,0.063,198.34,198.28,15.23765171]
[1738801530957,0.37647,198.33,198.27,15.23765171]
[1738801531362,0.37647,198.31,198.26,15.23765171]
[1738801531569,0.37647,198.31,198.25,0.03]
[1738801531770,15.23765171,198.3,198.25,0.03]
[1738801532071,0.37647,198.28,198.25,0.03]
[1738801533078,5.0436,198.27,198.25,0.03]
[1738801536282,5.0433,198.29,198.26,15.23765171]
[1738801536460,5.0423,198.32,198.28,15.23765171]
[1738801536860,5.0423,198.32,198.29,15.23765171]
[1738801537063,5.0423,198.32,198.28,15.23765171]
[1738801537257,0.37647,198.31,198.25,15.26765171]
[1738801537669,0.37647,198.29,198.25,15.26765171]
[1738801538163,5.41967,198.29,198.25,15.26765171]
[1738801538386,5.0428,198.31,198.25,15.26765171]
[1738801538588,5.0428,198.31,198.26,15.23765171]
[1738801539300,5.0428,198.31,198.27,15.23765171]
[1738801541197,5.0428,198.31,198.26,15.23765171]
[1738801543570,5.0428,198.31,198.25,15.26765171]
[1738801543974,5.0428,198.31,198.26,15.23765171]
[1738801545288,5.0428,198.31,198.25,15.26765171]
[1738801546701,5.0428,198.31,198.25,0.03]
[1738801547186,20.28045171,198.31,198.25,0.03]
[1738801548515,5.0428,198.31,198.25,0.03]
[1738801548818,5.0428,198.31,198.25,15.26765171]
[1738801550411,5.0428,198.31,198.26,15.23765171]
[1738801550616,5.0428,198.31,198.25,15.26765171]
[1738801552220,15.61412171,198.3,198.25,0.03]
[1738801552390,0.37647,198.28,198.25,0.03]
[1738801552791,10.14681252,198.28,198.25,0.03]
[1738801552989,0.37647,198.28,198.25,0.03]
[1738801555722,5.41987,198.28,198.25,0.03]
[1738801558515,0.37647,198.28,198.25,0.03]
[1738801558703,0.063,198.32,198.27,9.77034252]
[1738801558906,5.1053,198.32,198.27,9.77034252]
[1738801559229,0.37647,198.31,198.27,9.77034252]
[1738801560004,0.25098,198.31,198.28,9.77034252]
[1738801560203,0.37647,198.31,198.28,9.77034252]
[1738801560403,0.37647,198.31,198.27,9.77034252]
[1738801563904,0.37647,198.31,198.26,9.77034252]
[1738801564106,5.41917,198.31,198.26,9.77034252]
[1738801564439,9.89583252,198.3,198.25,0.03]
[1738801564610,0.25098,198.29,198.25,0.03]
[1738801565010,0.25098,198.29,198.27,0.03]
[1738801566433,0.62470284,198.32,198.27,9.80034252]
[1738801566434,0.063,198.32,198.27,9.80034252]
[1738801566643,0.063,198.32,198.29,9.77034252]
[1738801566841,0.063,198.32,198.31,9.77034252]
[1738801567810,0.063,198.32,198.3,9.77034252]
[1738801569830,0.063,198.32,198.31,9.77034252]
[1738801571230,0.063,198.32,198.29,9.77034252]
[1738801571538,0.063,198.32,198.3,9.77034252]
[1738801572240,0.063,198.32,198.31,9.77034252]
[1738801572616,0.063,198.32,198.3,9.77034252]
[1738801573017,0.063,198.32,198.31,9.77034252]
[1738801574743,0.063,198.32,198.31,15.25138723]
[1738801575141,0.063,198.32,198.3,15.25138723]
[1738801578670,0.063,198.32,198.27,0.03]
[1738801578671,0.063,198.32,198.29,15.25138723]
[1738801579534,0.063,198.32,198.31,15.25138723]
[1738801582042,0.063,198.32,198.31,20.29398723]
[1738801582854,0.063,198.34,198.33,20.0]
[1738801583155,0.063,198.34,198.33,35.25138723]
[1738801584158,0.063,198.34,198.33,40.29348723]
[1738801584536,0.063,198.34,198.33,35.25138723]
[1738801593259,0.063,198.34,198.33,40.29348723]
[1738801593462,0.063,198.34,198.33,41.04954951]
[1738801593643,0.063,198.34,198.33,40.29348723]
[1738801594767,0.063,198.34,198.33,34.79572985]
[1738801595253,0.063,198.4,198.33,61.5688749]
[1738801595468,0.063,198.4,198.39,9.75362985]
[1738801597676,0.063,198.4,198.38,9.75362985]
[1738801597841,0.063,198.4,198.36,9.75362985]
[1738801598467,0.063,198.4,198.37,9.75362985]
[1738801600058,0.063,198.4,198.39,9.75362985]
[1738801600746,0.063,198.4,198.39,15.23843818]
[1738801601646,0.063,198.4,198.39,20.27893818]
[1738801602163,0.063,198.4,198.39,15.23843818]
[1738801605167,0.063,198.4,198.35,5.0414]
[1738801605168,0.063,198.4,198.38,15.23843818]
[1738801605475,0.063,198.4,198.37,15.23843818]
[1738801606174,0.063,198.4,198.38,15.23843818]
[1738801606468,0.063,198.4,198.39,15.23843818]
[1738801606653,0.063,198.4,198.39,20.27893818]
[1738801607870,0.063,198.4,198.39,15.23843818]
[1738801609169,0.063,198.4,198.39,20.27893818]
[1738801609556,0.063,198.4,198.39,15.23843818]
[1738801614277,0.063,198.4,198.36,15.23843818]
[1738801614492,0.37647,198.39,198.35,15.23843818]
[1738801615577,0.37647,198.39,198.36,15.23843818]
[1738801616294,0.37647,198.37,198.34,0.03]
[1738801616588,15.61490818,198.35,198.34,0.03]
[1738801617105,0.37647,198.35,198.34,0.03]
[1738801617890,12.4145,198.38,198.34,0.03]
[1738801618069,12.97620284,198.38,198.34,0.03]
[1738801618686,0.37647,198.37,198.34,0.03]
[1738801621272,0.37647,198.35,198.34,0.03]
[1738801623810,0.25098,198.35,198.34,0.03]
[1738801623962,8.1745,198.38,198.34,0.03]
[1738801624167,0.37647,198.37,198.34,0.03]
[1738801624609,0.93817284,198.37,198.34,0.03]
[1738801626187,0.37647,198.37,198.34,15.26843818]
[1738801626500,0.25098,198.37,198.35,15.23843818]
[1738801626670,7.96993117,198.4,198.35,15.23843818]
[1738801626671,12.20993117,198.4,198.35,9.75684836]
[1738801626871,0.37647,198.39,198.35,9.75684836]
[1738801627795,0.37647,198.39,198.34,0.03]
[1738801627964,0.37647,198.39,198.34,9.78684836]
[1738801628992,0.063,198.4,198.38,9.75684836]
[1738801629288,0.063,198.4,198.39,9.75684836]
[1738801629489,0.063,198.4,198.37,9.75684836]
[1738801630591,0.063,198.4,198.37,15.24277183]
[1738801630906,0.25098,198.39,198.34,0.03]
[1738801631288,0.81268284,198.39,198.34,0.03]
[1738801631498,0.81268284,198.39,198.35,15.24277183]
[1738801631499,0.25098,198.39,198.35,15.24277183]
[1738801631878,0.25098,198.39,198.34,15.27277183]
[1738801632194,0.12549,198.38,198.34,0.03]
[1738801632525,0.12549,198.36,198.34,0.03]
[1738801632698,0.25098,198.35,198.34,0.03]
[1738801634416,8.62007,198.35,198.34,0.03]
[1738801634591,28.90434183,198.35,198.34,0.03]
[1738801634914,29.90434183,198.35,198.34,0.03]
[1738801635705,28.90434183,198.35,198.34,0.03]
[1738801636307,28.90434183,198.35,198.32,0.03]
[1738801636308,0.37647,198.33,198.32,0.02480649]
[1738801636484,16.18094467,198.33,198.32,0.02480649]
[1738801637909,0.93817284,198.33,198.32,0.02480649]
[1738801638105,0.37647,198.33,198.32,0.02480649]
[1738801638300,0.93817284,198.33,198.32,0.02480649]